lending/lending_fUSD_20250210
["ID","MTS","AMOUNT","RATE_DAILY","PERIOD"]
[352576188,1739176240127,-1305.19,0.00014794,4]
[352576190,1739176240137,-500.0,0.00014811,2]
[352576192,1739176240146,-1400.0,0.00014811,2]
[352576194,1739176240160,-400.0,0.0001497,2]
[352576196,1739176240170,-600.0,0.00015,2]
[352576198,1739176240179,-927.21,0.00015,10]
[352576200,1739176240189,-9499.0,0.00015,2]
[352576202,1739176240206,-6422.42804417,0.00015,30]
[352576204,1739176240216,-1955.77,0.00015,2]
[352576206,1739176240225,-1305.19,0.00015068,4]
[352576208,1739176240234,-2800.0,0.00015085,2]
[352576210,1739176240243,-1190.54,0.00015101,2]
[352576212,1739176240252,-4973.0,0.000152,3]
[352576214,1739176240261,-1305.19,0.00015342,4]
[352576216,1739176240270,-5554.0,0.000156,5]
[352576218,1739176240279,-1305.19,0.00015616,4]
[352576220,1739176240289,-166.36,0.00015667,2]
[352576222,1739176240301,-1305.19,0.0001589,4]
[352576224,1739176240310,-300.0,0.00015899,2]
[352576226,1739176240319,-300.0,0.00015899,2]
[352576228,1739176240328,-676.94420298,0.00015899,2]
[352576230,1739176240337,-207895.50658541,0.000159,2]
[352576232,1739176240346,-942.85,0.00016164,2]
[352576234,1739176240355,-1305.19,0.00016164,4]
[352576236,1739176240364,-500.0,0.00016181,2]
[352576238,1739176240373,-1400.0,0.00016181,2]
[352576240,1739176240382,-150.0,0.00016307,2]
[352576242,1739176240391,-161.41,0.00016424,2]
[352576244,1739176240400,-1305.19,0.00016438,4]
[352576246,1739176240409,-1227.09778965,0.0001644,2]
[352576248,1739176240418,-1227.09778965,0.0001644,2]
[352576250,1739176240427,-1227.09778965,0.0001644,2]
[352576252,1739176240436,-1227.09778965,0.0001644,2]
[352576254,1739176240445,-1227.09778965,0.0001644,2]
[352576256,1739176240453,-1227.09778965,0.0001644,2]
[352576258,1739176240462,-1227.09778965,0.0001644,2]
[352576260,1739176240472,-1227.09778965,0.0001644,2]
[352576262,1739176240481,-1227.09778965,0.0001644,2]
[352576264,1739176240490,-1227.09778965,0.0001644,2]
[352576265,1739176240499,-1227.09778965,0.0001644,2]
[352576267,1739176240508,-1227.09778965,0.0001644,2]
[352576269,1739176240517,-1227.09778965,0.0001644,2]
[352576271,1739176240526,-1227.09778965,0.0001644,2]
[352576273,1739176240535,-1227.09778965,0.0001644,2]
[352576275,1739176240544,-1227.09778965,0.0001644,2]
[352576277,1739176240553,-1227.09778965,0.0001644,2]
[352576279,1739176240562,-1227.09778965,0.0001644,2]
[352576281,1739176240571,-1227.09778965,0.0001644,2]
[352576283,1739176240580,-1227.09,0.0001644,2]
[352576285,1739176240589,-1280.05889379,0.0001644,2]
[352576287,1739176240598,-1280.05889379,0.0001644,2]
[352576289,1739176240607,-1280.05889379,0.0001644,2]
[352576291,1739176240617,-1280.05889379,0.0001644,2]
[352576293,1739176240626,-1280.05889379,0.0001644,2]
[352576295,1739176240635,-1280.05889379,0.0001644,2]
[352576297,1739176240643,-1280.05889379,0.0001644,2]
[352576299,1739176240652,-1280.05889379,0.0001644,2]
[352576301,1739176240662,-1280.05889379,0.0001644,2]
[352576303,1739176240671,-1280.05889379,0.0001644,2]
[352576305,1739176240680,-1280.05889379,0.0001644,2]
[352576307,1739176240689,-1280.05889379,0.0001644,2]
[352576309,1739176240699,-1280.05889379,0.0001644,2]
[352576311,1739176240708,-1280.05889379,0.0001644,2]
[352576313,1739176240717,-1280.05889379,0.0001644,2]
[352576315,1739176240727,-1280.05889379,0.0001644,2]
[352576317,1739176240736,-1280.05889379,0.0001644,2]
[352576319,1739176240745,-1280.05889379,0.0001644,2]
[352576321,1739176240754,-1280.05889379,0.0001644,2]
[352576323,1739176240763,-1280.05,0.0001644,2]
[352576325,1739176240772,-1604.942429,0.0001644,2]
[352576327,1739176240781,-1604.942429,0.0001644,2]
[352576329,1739176240790,-1604.942429,0.0001644,2]
[352576331,1739176240799,-1604.942429,0.0001644,2]
[352576333,1739176240808,-1604.942429,0.0001644,2]
[352576335,1739176240817,-1604.942429,0.0001644,2]
[352576337,1739176240826,-1604.942429,0.0001644,2]
[352576339,1739176240834,-1604.942429,0.0001644,2]
[352576341,1739176240843,-1604.942429,0.0001644,2]
[352576343,1739176240853,-1604.942429,0.0001644,2]
[352576345,1739176240861,-1604.942429,0.0001644,2]
[352576347,1739176240870,-1604.942429,0.0001644,2]
[352576349,1739176240879,-1604.942429,0.0001644,2]
[352576351,1739176240888,-1604.942429,0.0001644,2]
[352576353,1739176240897,-1604.942429,0.0001644,2]
[352576355,1739176240905,-1604.942429,0.0001644,2]
[352576357,1739176240915,-1604.942429,0.0001644,2]
[352576359,1739176240923,-1604.942429,0.0001644,2]
[352576361,1739176240932,-1604.942429,0.0001644,2]
[352576363,1739176240941,-1604.94,0.0001644,2]
[352576365,1739176240950,-998.15,0.00016443,2]
[352576367,1739176240959,-161.41,0.00016444,2]
[352576369,1739176240968,-2800.0,0.00016455,2]
[352576371,1739176240977,-161.41,0.00016465,2]
[352576373,1739176240986,-161.41,0.00016485,2]
[352576375,1739176240995,-3859.94,0.000165,2]
[352576377,1739176241004,-161.41,0.00016506,2]
[352576379,1739176241014,-765.14,0.00016658,30]
[352576381,1739176241023,-273.79055,0.00016688,7]
[352576383,1739176241032,-155.98,0.0001669,2]
[352576385,1739176241040,-500.0,0.0001669,13]
[352576387,1739176241049,-500.0,0.0001669,13]
[352576389,1739176241058,-500.0,0.0001669,13]
[352576390,1739176241067,-381.0,0.0001669,13]
[352576393,1739176241077,-3257.03,0.000167,7]
[352576394,1739176241086,-1305.19,0.00016712,4]
[352576396,1739176241095,-198.41,0.00016712,2]
[352576398,1739176241104,-273.52,0.0001674,2]
[352576400,1739176241113,-173.64,0.00016758,2]
[352576402,1739176241122,-163.07,0.0001677,2]
[352576404,1739176241131,-417.21764954,0.00016773,2]
[352576407,1739176241144,-94081.46370714,0.000168,2]
[352576408,1739176241156,-2863.22817585,0.000168,2]
[352576410,1739176241166,-2863.22817585,0.000168,2]
[352576412,1739176241176,-2863.22817585,0.000168,2]
[352576414,1739176241185,-2863.22817585,0.000168,2]
[352576417,1739176241195,-2863.22817585,0.000168,2]
[352576418,1739176241204,-2863.22817585,0.000168,2]
[352576420,1739176241213,-2863.22817585,0.000168,2]
[352576422,1739176241223,-2863.22817585,0.000168,2]
[352576424,1739176241233,-2863.22817585,0.000168,2]
[352576426,1739176241243,-2863.22817585,0.000168,2]
[352576428,1739176241251,-2863.22817585,0.000168,2]
[352576430,1739176241261,-2863.22817585,0.000168,2]
[352576432,1739176241270,-2863.22817585,0.000168,2]
[352576434,1739176241280,-2863.22817585,0.000168,2]
[352576436,1739176241289,-2863.22817585,0.000168,2]
[352576438,1739176241299,-2863.22817585,0.000168,2]
[352576440,1739176241308,-2863.22817585,0.000168,2]
[352576442,1739176241318,-2863.22817585,0.000168,2]
[352576444,1739176241328,-2863.22817585,0.000168,2]
[352576447,1739176241337,-2863.22,0.000168,2]
[352576449,1739176241346,-2986.8040855,0.000168,2]
[352576467,1739176241503,-2986.8040855,0.000168,2]
[352576469,1739176241514,-2986.8040855,0.000168,2]
[352576471,1739176241523,-2986.8040855,0.000168,2]
[352576473,1739176241532,-2986.8040855,0.000168,2]
[352576475,1739176241542,-2986.8040855,0.000168,2]
[352576477,1739176241551,-2986.8040855,0.000168,2]
[352576479,1739176241559,-2986.8040855,0.000168,2]
[352576481,1739176241568,-2986.8040855,0.000168,2]
[352576483,1739176241577,-2986.8040855,0.000168,2]
[352576485,1739176241586,-2986.8040855,0.000168,2]
[352576487,1739176241595,-2986.8040855,0.000168,2]
[352576489,1739176241604,-2986.8040855,0.000168,2]
[352576491,1739176241613,-2986.8040855,0.000168,2]
[352576492,1739176241622,-2986.8040855,0.000168,2]
[352576494,1739176241631,-2986.8040855,0.000168,2]
[352576496,1739176241640,-2986.8040855,0.000168,2]
[352576498,1739176241648,-2986.8040855,0.000168,2]
[352576500,1739176241657,-2986.8040855,0.000168,2]
[352576502,1739176241667,-2986.8,0.000168,2]
[352576504,1739176241676,-3744.86566767,0.000168,2]
[352576506,1739176241685,-3744.86566767,0.000168,2]
[352576508,1739176241695,-3744.86566767,0.000168,2]
[352576510,1739176241704,-3744.86566767,0.000168,2]
[352576512,1739176241713,-3744.86566767,0.000168,2]
[352576514,1739176241722,-3744.86566767,0.000168,2]
[352576516,1739176241731,-3744.86566767,0.000168,2]
[352576519,1739176241740,-3744.86566767,0.000168,2]
[352576521,1739176241749,-3744.86566767,0.000168,2]
[352576523,1739176241758,-3744.86566767,0.000168,2]
[352576525,1739176241768,-3744.86566767,0.000168,2]
[352576527,1739176241777,-3744.86566767,0.000168,2]
[352576528,1739176241786,-3744.86566767,0.000168,2]
[352576530,1739176241796,-3744.86566767,0.000168,2]
[352576532,1739176241805,-3744.86566767,0.000168,2]
[352576534,1739176241815,-3744.86566767,0.000168,2]
[352576536,1739176241824,-3744.86566767,0.000168,2]
[352576538,1739176241833,-3744.86566767,0.000168,2]
[352576540,1739176241842,-3744.86566767,0.000168,2]
[352576542,1739176241851,-3744.86,0.000168,2]
[352576544,1739176241860,-250.0,0.00016813,2]
[352576546,1739176241869,-639.0,0.0001685,2]
[352576548,1739176241878,-273.79055,0.00016888,7]
[352576550,1739176241887,-345353.97121525,0.000169,3]
[352576552,1739176241896,-1305.19,0.00016986,4]
[352576554,1739176241904,-155.53,0.00016992,2]
[352576556,1739176241914,-650.0,0.00017,2]
[352576558,1739176241923,-273.79055,0.00017088,7]
[352576561,1739176241934,-972.991,0.00017098,2]
[352576563,1739176241944,-167.11,0.00017123,2]
[352576565,1739176241953,-895.81559063,0.00017151,2]
[352576567,1739176241963,-1305.19,0.0001726,4]
[352576569,1739176241972,-273.79055,0.00017288,7]
[352576571,1739176241981,-1190.54,0.00017365,2]
[352576573,1739176241990,-273.79055,0.00017488,7]
[352576575,1739176242000,-203.0,0.0001752,2]
[352576576,1739176242010,-1305.19,0.00017534,4]
[352576578,1739176242019,-2800.0,0.00017551,2]
[352576580,1739176242029,-500.0,0.00017551,2]
[352576582,1739176242038,-1400.0,0.00017551,2]
[352576585,1739176242050,-273.79055,0.00017688,7]
[352576587,1739176242060,-3859.94,0.000177,2]
[352576589,1739176242069,-150.0,0.00017803,2]
[352576591,1739176242079,-150.0,0.00017803,2]
[352576593,1739176242089,-232.19386209,0.00017803,2]
[352576595,1739176242098,-1305.19,0.00017808,4]
[352576597,1739176242108,-300.0,0.0001785,2]
[352576599,1739176242117,-273.79055,0.00017888,7]
[352576601,1739176242127,-214.0,0.0001796,2]
[352576603,1739176242137,-1305.19,0.00018082,4]
[352576605,1739176242151,-2000.0,0.00018082,2]
[352576607,1739176242162,-200.0,0.00018082,2]
[352576609,1739176242171,-273.79055,0.00018088,7]
[352576611,1739176242180,-7310.60917848,0.000181,2]
[352576613,1739176242191,-273.79055,0.00018288,7]
[352576615,1739176242200,-542.44622801,0.00018295,2]
[352576617,1739176242210,-1305.19,0.00018356,4]
[352576619,1739176242219,-273.79055,0.00018488,7]
[352576621,1739176242228,-998.15,0.00018499,2]
[352576623,1739176242239,-16948.96,0.00018533,2]
[352576624,1739176242248,-214.0,0.0001854,2]
[352576627,1739176242258,-154.54,0.000186,2]
[352576629,1739176242268,-500.0,0.00018623,2]
[352576630,1739176242277,-500.0,0.00018623,2]
[352576632,1739176242286,-500.0,0.00018623,2]
[352576634,1739176242297,-276.0,0.00018623,2]
[352576636,1739176242306,-500.0,0.00018623,2]
[352576638,1739176242315,-303.0,0.00018623,2]
[352576640,1739176242324,-200.0,0.00018623,2]
[352576642,1739176242333,-200.0,0.00018623,2]
[352576644,1739176242343,-200.0,0.00018623,2]
[352576646,1739176242351,-200.0,0.00018623,2]
[352576648,1739176242360,-200.0,0.00018623,2]
[352576650,1739176242369,-200.0,0.00018623,2]
[352576652,1739176242379,-200.0,0.00018623,2]
[352576654,1739176242388,-200.0,0.00018623,2]
[352576655,1739176242396,-200.0,0.00018623,2]
[352576656,1739176242406,-200.0,0.00018623,2]
[352576657,1739176242414,-200.0,0.00018623,2]
[352576658,1739176242423,-200.0,0.00018623,2]
[352576659,1739176242432,-200.0,0.00018623,2]
[352576660,1739176242441,-200.0,0.00018623,2]
[352576661,1739176242449,-200.0,0.00018623,2]
[352576662,1739176242459,-200.0,0.00018623,2]
[352576663,1739176242468,-200.0,0.00018623,2]
[352576664,1739176242477,-200.0,0.00018623,2]
[352576665,1739176242487,-200.0,0.00018623,2]
[352576667,1739176242496,-200.0,0.00018623,2]
[352576669,1739176242505,-200.0,0.00018623,2]
[352576671,1739176242514,-200.0,0.00018623,2]
[352576673,1739176242523,-200.0,0.00018623,2]
[352576675,1739176242532,-200.0,0.00018623,2]
[352576677,1739176242541,-208.0,0.00018623,2]
[352576679,1739176242551,-1305.19,0.0001863,4]
[352576681,1739176242560,-500.0,0.00018647,2]
[352576683,1739176242569,-1400.0,0.00018647,2]
[352576685,1739176242579,-273.79055,0.00018688,7]
[352576687,1739176242588,-2000.0,0.00018751,2]
[352576689,1739176242597,-273.79055,0.00018888,7]
[352576691,1739176242606,-1305.19,0.00018904,4]
[352576693,1739176242617,-400.36266894,0.0001897,2]
[352576695,1739176242626,-17163.35223383,0.00018997,14]
[352576697,1739176242635,-461.0,0.00019,2]
[352576699,1739176242644,-700.0,0.00019,2]
[352576701,1739176242653,-4632.5452234,0.00019,10]
[352576703,1739176242663,-17562.55930623,0.00019,3]
[352576705,1739176242673,-7598.56064262,0.00019,2]
[352576708,1739176242682,-961.61,0.00019,2]
[352576711,1739176242692,-3713.83148957,0.00019,2]
[352576714,1739176242701,-400.23706999,0.00019,2]
[352576717,1739176242711,-8931.99479051,0.00019,2]
[352576720,1739176242720,-1799.99999902,0.00019,20]
[352576722,1739176242729,-273.79055,0.00019088,7]
[352576724,1739176242739,-3859.94,0.000191,2]
[352576726,1739176242748,-214.0,0.0001911,2]
[352576728,1739176242758,-5075.36695305,0.0001911,2]
[352576730,1739176242768,-1305.19,0.00019178,4]
[352576734,1739176242778,-150.0,0.00019178,2]
[352576738,1739176242787,-150.0,0.00019178,2]
[352576741,1739176242797,-300.0,0.0001922,2]
[352576744,1739176242807,-765.14,0.00019242,30]
[352576747,1739176242817,-273.79055,0.00019288,7]
[352576750,1739176242826,-220200.40866146,0.000193,2]
[352576753,1739176242835,-47200.0,0.00019316,2]
[352576756,1739176242845,-410.2177828,0.00019367,2]
[352576759,1739176242854,-746.97,0.0001938,2]
[352576762,1739176242863,-23411.62499434,0.00019401,2]
[352576765,1739176242873,-2000.0,0.0001942,2]
[352576768,1739176242883,-1305.19,0.00019452,4]
[352576771,1739176242893,-150.0,0.00019452,2]
[352576773,1739176242903,-273.79055,0.00019488,7]
[352576776,1739176242912,-500.0,0.00019549,2]
[352576778,1739176242921,-918.75636678,0.00019562,2]
[352576780,1739176242930,-1000.0,0.00019583,2]
[352576782,1739176242939,-300.0,0.00019599,2]
[352576783,1739176242949,-303.86089537,0.00019599,2]
[352576785,1739176242958,-300.0,0.00019599,2]
[352576787,1739176242967,-300.0,0.00019599,2]
[352576789,1739176242977,-1074.5442119,0.000196,2]
[352576791,1739176242986,-1004.91232976,0.000196,2]
[352576793,1739176242995,-1257.48517942,0.000196,2]
[352576795,1739176243005,-121425.89088992,0.000196,2]
[352576797,1739176243014,-3471.62053,0.000196,2]
[352576799,1739176243024,-1238.9337108,0.00019602,2]
[352576801,1739176243033,-3290.64655191,0.0001961,2]
[352576803,1739176243042,-1190.54,0.00019629,2]
[352576806,1739176243052,-500.0,0.00019641,2]
[352576807,1739176243062,-500.0,0.00019641,2]
[352576809,1739176243071,-500.0,0.00019642,2]
[352576811,1739176243080,-2000.0,0.00019642,2]
[352576813,1739176243091,-500.0,0.00019642,2]
[352576816,1739176243101,-500.0,0.00019642,2]
[352576818,1739176243110,-500.0,0.00019642,2]
[352576819,1739176243120,-200.0,0.00019642,2]
[352576822,1739176243129,-500.0,0.00019649,2]
[352576823,1739176243138,-410.2177829,0.00019657,2]
[352576825,1739176243149,-150.0,0.00019683,2]
[352576827,1739176243163,-214.0,0.0001969,2]
[352576829,1739176243172,-214.0,0.0001969,2]
[352576831,1739176243182,-7887884.18177533,0.00019691,3]
[352576834,1739176243192,-8999999.0,0.00019692,6]
[352576836,1739176243202,-1479683.4078841,0.00019697,4]
[352576838,1739176243212,-290.385249,0.00019697,2]
[352576840,1739176243222,-290.385249,0.00019697,2]
[352576842,1739176243233,-164.0,0.00019697,2]
[352576844,1739176243242,-164.0,0.00019697,2]
[352576846,1739176243251,-151.0,0.00019697,2]
[352576848,1739176243261,-495.541542,0.00019697,2]
[352576850,1739176243271,-982.904304,0.00019697,2]
[352576851,1739176243280,-495.541542,0.00019697,2]
[352576854,1739176243290,-982.904304,0.00019697,2]
[352576856,1739176243302,-151.0,0.00019697,2]
[352576858,1739176243311,-151.0,0.00019697,2]
[352576860,1739176243322,-151.0,0.00019697,2]
[352576862,1739176243332,-151.0,0.00019697,2]
[352576864,1739176243341,-224.583997,0.00019697,2]
[352576866,1739176243352,-224.583997,0.00019697,2]
[352576868,1739176243362,-300.0,0.00019699,2]
[352576870,1739176243371,-300.0,0.00019699,2]
[352576871,1739176243380,-300.0,0.00019699,2]
[352576873,1739176243390,-500.0,0.00019699,3]
[352576875,1739176243400,-500.0,0.00019699,3]
[352576877,1739176243410,-500.0,0.00019699,3]
[352576879,1739176243419,-500.0,0.00019699,3]
[352576881,1739176243428,-1494.71,0.00019699,2]
[352576883,1739176243439,-500.0,0.00019699,3]
[352576885,1739176243448,-500.0,0.00019699,3]
[352576887,1739176243457,-500.0,0.00019699,3]
[352576889,1739176243467,-633.45,0.00019699,3]
[352576891,1739176243476,-500.0,0.00019699,3]
[352576893,1739176243486,-500.0,0.00019699,3]
[352576895,1739176243495,-500.0,0.00019699,3]
[352576897,1739176243505,-500.0,0.00019699,3]
[352576900,1739176243514,-694.57,0.00019699,3]
[352576903,1739176243524,-1599.04332763,0.00019699,3]
[352576905,1739176243533,-307.25958094,0.000197,2]
[352576907,1739176243542,-174.15530736,0.000197,2]
[352576909,1739176243552,-3000.0,0.000197,2]
[352576911,1739176243561,-4061.09,0.000197,31]
[352576913,1739176243570,-4061.09,0.000197,31]
[352576915,1739176243579,-4061.09,0.000197,31]
[352576917,1739176243588,-4061.09,0.000197,31]
[352576919,1739176243597,-4061.09,0.000197,31]
[352576921,1739176243606,-4061.09,0.000197,31]
[352576923,1739176243615,-4061.09,0.000197,31]
[352576925,1739176243624,-4061.09,0.000197,31]
[352576927,1739176243633,-4061.09,0.000197,31]
[352576929,1739176243642,-4061.09,0.000197,31]
[352576931,1739176243651,-4061.09,0.000197,31]
[352576933,1739176243660,-4061.09,0.000197,31]
[352576935,1739176243668,-4061.09,0.000197,31]
[352576937,1739176243678,-4061.09,0.000197,31]
[352576939,1739176243686,-4061.09,0.000197,31]
[352576941,1739176243696,-4061.09,0.000197,31]
[352576943,1739176243705,-1000000.0,0.000197,2]
[352576945,1739176243714,-161.174155,0.000197,2]
[352576947,1739176243724,-336.820439,0.000197,2]
[352576949,1739176243733,-336.820439,0.000197,2]
[352576951,1739176243742,-749.507924,0.000197,2]
[352576953,1739176243751,-1408.008449,0.000197,2]
[352576955,1739176243760,-749.507924,0.000197,2]
[352576957,1739176243769,-1408.008449,0.000197,2]
[352576959,1739176243778,-223.054,0.000197,2]
[352576961,1739176243787,-223.054,0.000197,2]
[352576963,1739176243797,-151.0,0.000197,2]
[352576965,1739176243806,-151.0,0.000197,2]
[352576967,1739176243815,-151.0,0.000197,2]
[352576970,1739176243825,-290.385249,0.000197,2]
[352576971,1739176243834,-290.385249,0.000197,2]
[352576973,1739176243843,-164.0,0.000197,2]
[352576975,1739176243852,-164.0,0.000197,2]
[352576977,1739176243861,-158.595413,0.000197,2]
[352576979,1739176243870,-495.541542,0.000197,2]
[352576981,1739176243879,-982.904304,0.000197,2]
[352576983,1739176243888,-495.541542,0.000197,2]
[352576985,1739176243898,-982.904304,0.000197,2]
[352576987,1739176243907,-151.0,0.000197,2]
[352576989,1739176243916,-151.0,0.000197,2]
[352576991,1739176243925,-151.0,0.000197,2]
[352576993,1739176243934,-151.0,0.000197,2]
[352576995,1739176243943,-724285.5062072,0.000197,5]
[352576997,1739176243952,-224.583997,0.000197,2]
[352576999,1739176243961,-224.583997,0.000197,2]
[352577001,1739176243970,-3652.61054836,0.00019719,2]
[352577003,1739176243978,-3652.61054833,0.00019719,2]
[352577005,1739176243988,-3652.61054833,0.00019719,2]
[352577007,1739176243998,-1000.0,0.00019723,2]
[352577009,1739176244007,-1305.19,0.00019726,4]
[352577011,1739176244016,-1400.0,0.00019743,2]
[352577013,1739176244026,-500.0,0.00019743,2]
[352577015,1739176244035,-2800.0,0.00019743,2]
[352577017,1739176244045,-500.0,0.00019749,2]
[352577019,1739176244054,-400.0,0.0001977,2]
[352577021,1739176244063,-400.0,0.0001977,2]
[352577023,1739176244072,-400.0,0.0001977,2]
[352577025,1739176244082,-1000.0,0.00019771,2]
[352577027,1739176244091,-150.0,0.00019771,2]
[352577029,1739176244100,-500.0,0.00019773,2]
[352577031,1739176244109,-500.0,0.00019773,2]
[352577033,1739176244118,-500.0,0.00019773,2]
[352577035,1739176244127,-150.0,0.00019773,2]
[352577037,1739176244136,-150.0,0.00019779,2]
[352577039,1739176244145,-515375.71134838,0.0001978,2]
[352577041,1739176244158,-220.24719445,0.00019781,4]
[352577043,1739176244169,-278.44435627,0.00019781,4]
[352577045,1739176244178,-150.0,0.00019788,2]
[352577047,1739176244187,-732.2221434,0.00019791,2]
[352577049,1739176244198,-186.2817419,0.00019791,2]
[352577051,1739176244206,-161.2996518,0.00019791,2]
[352577052,1739176244216,-834.0294717,0.00019791,2]
[352577054,1739176244225,-473.9256931,0.00019791,2]
[352577057,1739176244235,-1000.0,0.00019798,2]
[352577058,1739176244244,-421.15,0.00019799,3]
[352577060,1739176244253,-500.0,0.00019799,3]
[352577062,1739176244263,-500.0,0.00019799,3]
[352577064,1739176244272,-500.0,0.00019799,3]
[352577066,1739176244281,-500.0,0.00019799,2]
[352577068,1739176244290,-666.0,0.00019799,2]
[352577070,1739176244301,-206.02176052,0.00019799,3]
[352577072,1739176244310,-500.0,0.00019799,3]
[352577074,1739176244319,-500.0,0.00019799,3]
[352577076,1739176244329,-500.0,0.00019799,3]
[352577078,1739176244339,-500.0,0.00019799,3]
[352577080,1739176244348,-646.8,0.00019799,3]
[352577083,1739176244358,-500.0,0.00019799,3]
[352577084,1739176244367,-500.0,0.00019799,3]
[352577086,1739176244376,-300.0,0.00019799,2]
[352577089,1739176244386,-500.0,0.00019799,3]
[352577091,1739176244396,-300.0,0.00019799,2]
[352577093,1739176244407,-300.0,0.00019799,2]
[352577095,1739176244416,-500.0,0.00019799,3]
[352577097,1739176244426,-681.15,0.00019799,3]
[352577098,1739176244435,-749116.84378718,0.000198,2]
[352577116,1739176244592,-26386.59821995,0.000198,2]
[352577118,1739176244603,-11427.78538896,0.000198,2]
[352577120,1739176244615,-9780.69999999,0.000198,2]
[352577123,1739176244627,-921.42936603,0.000198,2]
[352577137,1739176244757,-292.560002,0.000162,2]
[352577140,1739176244769,-691.072178,0.000162,2]
[352577142,1739176244779,-500.0,0.00019449,2]
[352577143,1739176244788,-4213.71582201,0.000198,2]
[352577147,1739176244817,-862.7749996,0.000182,2]
[352577151,1739176244840,-120.8571804,0.000182,2]
[352577153,1739176244849,-283.53426166,0.000198,2]
[352577155,1739176244864,-518.72,0.000198,2]
[352577166,1739176245046,-760.43357739,0.0001,2]
[352577168,1739176245058,-494.68040663,0.0001,2]
[352577170,1739176245067,-345.833307,0.00019697,2]
[352577172,1739176245077,-133.40628637,0.000197,2]
[352577174,1739176245089,-212.42702063,0.000197,2]
[352577176,1739176245098,-11391.71386337,0.000198,2]
[352577195,1739176245276,-4544.92314447,0.000198,2]
[352577198,1739176245294,-262.18003039,0.000198,2]
[352577201,1739176245307,-1033.09999995,0.000198,2]
[352577203,1739176245324,-4783.63647588,0.000198,2]
[352577205,1739176245336,-1000.0,0.000198,2]
[352577208,1739176245355,-1983.67623674,0.00019697,2]
[352577928,1739176290712,150.0,0.00019832,120]
[352577930,1739176318215,290.0,0.0002,120]
[352577931,1739176408214,-150.0,9.998e-05,2]
[352577932,1739176408241,-500.0,9.999e-05,2]
[352577933,1739176408267,-500.0,9.999e-05,2]
[352577934,1739176408293,-500.80614388,9.999e-05,2]
[352577935,1739176408317,-271.6,9.999e-05,2]
[352577936,1739176408341,-344.02193979,9.999e-05,2]
[352577937,1739176408365,-500.0,9.999e-05,2]
[352577938,1739176408389,-500.0,9.999e-05,2]
[352577939,1739176408413,-204.11794553,9.999e-05,2]
[352577940,1739176408437,-500.0,9.999e-05,2]
[352577941,1739176408460,-500.0,9.999e-05,2]
[352577942,1739176408483,-500.0,9.999e-05,2]
[352577943,1739176408507,-500.0,9.999e-05,2]
[352577944,1739176408532,-500.0,9.999e-05,2]
[352577945,1739176408556,-500.0,9.999e-05,2]
[352577946,1739176408579,-500.0,9.999e-05,2]
[352577947,1739176408602,-491.84205447,9.999e-05,2]
[352577948,1739176408625,-500.0,9.999e-05,2]
[352577949,1739176408649,-500.0,9.999e-05,2]
[352577950,1739176408674,-500.0,9.999e-05,2]
[352577951,1739176408698,-500.0,9.999e-05,2]
[352577952,1739176408723,-500.0,9.999e-05,2]
[352577953,1739176408749,-500.0,9.999e-05,2]
[352577954,1739176408773,-500.0,9.999e-05,2]
[352577955,1739176408797,-500.0,9.999e-05,2]
[352577956,1739176408822,-500.0,9.999e-05,2]
[352577957,1739176408846,-500.0,9.999e-05,2]
[352577958,1739176408871,-537.61191633,9.999e-05,2]
[352577959,1739176467769,-37.19808367,9.999e-05,2]
[352577960,1739176467800,-500.0,9.999e-05,2]